fUSD/lending_fUSD_20260628
["ID","MTS","AMOUNT","RATE_DAILY","PERIOD"]
[426583881,1782631841000,-262.24,0.00032759,3]
[426583877,1782631841000,-500.0,0.00032671,2]
[426583880,1782631841000,-617.81,0.000327,7]
[426583888,1782631841000,-13431.07560161,0.00033,2]
[426583886,1782631841000,-63000.18461978,0.00033,2]
[426583887,1782631841000,-36925.09282892,0.00033,2]
[426583860,1782631841000,-644.59,0.0003239,2]
[426583863,1782631841000,-2000.0,0.0003257,7]
[426583829,1782631841000,-2562.83040121,0.00031302,2]
[426583851,1782631841000,-17243.0,0.00032,20]
[426583853,1782631841000,-488.52,0.00032,2]
[426583827,1782631841000,-313.79467906,0.00031276,2]
[426583826,1782631841000,-3564.0,0.00031207,2]
[426583825,1782631841000,-299.15,0.000311,7]
[426583844,1782631841000,-900.44,0.00031796,120]
[426583845,1782631841000,-2562.83040121,0.0003185,2]
[426583834,1782631841000,-490.0,0.00031667,30]
[426583833,1782631841000,-154.0,0.00031667,30]
[426583836,1782631841000,-155.0,0.00031667,30]
[426583843,1782631841000,-272.04,0.00031752,3]
[426583835,1782631841000,-524.0,0.00031667,30]
[426583839,1782631841000,-153.0,0.00031667,30]
[426583842,1782631841000,-157.0,0.00031669,30]
[426583837,1782631841000,-152.0,0.00031667,30]
[426583841,1782631841000,-664.0,0.00031669,30]
[426583838,1782631841000,-298.0,0.00031667,30]
[426583840,1782631841000,-153.0,0.00031667,30]
[426583850,1782631841000,-617.81,0.000319,7]
[426583855,1782631841000,-651.36,0.00032,2]
[426583852,1782631841000,-285.05513885,0.00032,30]
[426583856,1782631841000,-2562.83040121,0.00032124,2]
[426583859,1782631841000,-1009.35,0.00032232,7]
[426583854,1782631841000,-325.68,0.00032,2]
[426583846,1782631841000,-1500.0,0.0003185,2]
[426583848,1782631841000,-1000.0,0.00031859,2]
[426583847,1782631841000,-274.69816003,0.00031859,2]
[426583858,1782631841000,-299.15,0.000322,7]
[426583857,1782631841000,-16000.8470296,0.00032124,2]
[426583849,1782631841000,-1172.82,0.00031859,2]
[426583917,1782631842000,-171.55184742,0.00033053,2]
[426583918,1782631842000,-2562.83040121,0.00033054,2]
[426583923,1782631842000,-299.15,0.000331,30]
[426583922,1782631842000,-294.03353356,0.00033079,7]
[426583927,1782631842000,-2562.83040121,0.00033327,2]
[426583926,1782631842000,-2000.0,0.00033313,7]
[426583938,1782631842000,-1259.24,0.00033546,2]
[426583930,1782631842000,-1490.0,0.0003349,5]
[426583929,1782631842000,-165.55,0.00033472,30]
[426583939,1782631842000,-2562.83040121,0.00033599,2]
[426583932,1782631842000,-285.0,0.000335,2]
[426583925,1782631842000,-190.6956092,0.00033174,30]
[426583936,1782631842000,-1000.0,0.00033546,2]
[426583928,1782631842000,-617.81,0.000334,30]
[426583891,1782631842000,-258.86909076,0.00033,2]
[426583924,1782631842000,-6116.85632789,0.00033164,2]
[426583919,1782631842000,-500.0,0.00033079,7]
[426583920,1782631842000,-500.0,0.00033079,7]
[426583921,1782631842000,-500.0,0.00033079,7]
[426583913,1782631842000,-150.0,0.0003279,7]
[426583915,1782631842000,-2813.99392935,0.00033,2]
[426583914,1782631842000,-3112.14859335,0.00033,2]
[426583912,1782631842000,-195.0,0.00028669,30]
[426583916,1782631842000,-20010.43015144,0.00033,2]
[426583893,1782631842000,-3208.3383746,0.00033,2]
[426583894,1782631842000,-978.70596519,0.00033,2]
[426583892,1782631842000,-2699.718551,0.00033,2]
[426583890,1782631842000,-374.68915625,0.00033,2]
[426583889,1782631842000,-675.78141647,0.00033,2]
[426583931,1782631842000,-1193.0,0.0003349,5]
[426583935,1782631842000,-210.0,0.000335,2]
[426583937,1782631842000,-1000.0,0.00033546,2]
[426583933,1782631842000,-178.91177009,0.000335,2]
[426583967,1782631842000,-500.0,0.00033919,2]
[426583970,1782631842000,-299.15,0.00034,30]
[426583968,1782631842000,-17243.0,0.0003392,20]
[426583969,1782631842000,-674.90010754,0.00033941,7]
[426583971,1782631842000,-160.0,0.00034,10]
[426583966,1782631842000,-2562.83040121,0.00033872,2]
[426583963,1782631842000,-700.0,0.0003377,2]
[426583958,1782631842000,-153.0,0.00033667,30]
[426583957,1782631842000,-298.0,0.00033667,30]
[426583964,1782631842000,-1310.54409796,0.00033786,2]
[426583960,1782631842000,-664.0,0.00033669,30]
[426583961,1782631842000,-158.99933998,0.00033669,30]
[426583962,1782631842000,-400.0,0.00033694,7]
[426583965,1782631842000,-302.03,0.00033807,30]
[426583955,1782631842000,-155.0,0.00033667,30]
[426583959,1782631842000,-153.0,0.00033667,30]
[426583940,1782631842000,-2903.0,0.00033604,10]
[426583941,1782631842000,-156.12131123,0.00033619,2]
[426583943,1782631842000,-4173.26894497,0.00033619,2]
[426583945,1782631842000,-10007.8093,0.0003363,2]
[426583942,1782631842000,-578.70948604,0.00033619,2]
[426583934,1782631842000,-687.0,0.000335,2]
[426583948,1782631842000,-151.0,0.00033666,30]
[426583946,1782631842000,-250.0,0.00033631,7]
[426583952,1782631842000,-490.0,0.00033667,30]
[426583950,1782631842000,-154.0,0.00033667,30]
[426583954,1782631842000,-524.0,0.00033667,30]
[426583944,1782631842000,-2001.8653,0.0003363,2]
[426583956,1782631842000,-152.0,0.00033667,30]
[426584001,1782631843000,-2562.83040121,0.0003469,2]
[426583998,1782631843000,-153.0,0.00034667,30]
[426583992,1782631843000,-490.0,0.00034667,30]
[426583990,1782631843000,-151.0,0.00034666,30]
[426583999,1782631843000,-664.0,0.00034669,30]
[426583991,1782631843000,-154.0,0.00034667,30]
[426583997,1782631843000,-153.0,0.00034667,30]
[426584005,1782631843000,-1170.43805866,0.00034869,2]
[426583995,1782631843000,-152.0,0.00034667,30]
[426584009,1782631843000,-2562.83040121,0.00034962,2]
[426584008,1782631843000,-4355.0,0.00034948,10]
[426584003,1782631843000,-574.0,0.00034799,2]
[426584000,1782631843000,-900.44,0.00034686,120]
[426584007,1782631843000,-17243.0,0.0003488,20]
[426584002,1782631843000,-2000.0,0.00034799,7]
[426583993,1782631843000,-524.0,0.00034667,30]
[426584004,1782631843000,-178.67571997,0.00034856,2]
[426583982,1782631843000,-313.79467906,0.00034257,2]
[426583986,1782631843000,-500.0,0.000344,7]
[426583974,1782631843000,-482.58,0.00034035,2]
[426583972,1782631843000,-482.58,0.00034035,2]
[426583975,1782631843000,-933.33805194,0.00034037,2]
[426583973,1782631843000,-573.86,0.00034035,2]
[426583976,1782631843000,-482.62,0.00034051,2]
[426583977,1782631843000,-2000.0,0.00034056,7]
[426583988,1782631843000,-2562.83040121,0.00034417,2]
[426583996,1782631843000,-298.0,0.00034667,30]
[426583978,1782631843000,-617.81,0.000341,30]
[426583987,1782631843000,-1500.0,0.000344,7]
[426583979,1782631843000,-13589.80002843,0.00034125,7]
[426584013,1782631843000,-6027.0,0.00035,2]
[426583989,1782631843000,-502.0,0.00034575,2]
[426583985,1782631843000,-266.26532758,0.00034395,2]
[426583984,1782631843000,-700.0,0.0003437,2]
[426583981,1782631843000,-3563.875,0.00034207,2]
[426583983,1782631843000,-574.0,0.00034338,2]
[426584014,1782631843000,-25000.0,0.00035,10]
[426583980,1782631843000,-2562.83040121,0.00034145,2]
[426584006,1782631843000,-482.58,0.00034873,2]
[426584032,1782631843000,-153.246406,0.00035363,7]
[426584035,1782631843000,-151.0,0.00035363,7]
[426584038,1782631843000,-700.0,0.0003537,2]
[426584037,1782631843000,-517.03475046,0.0003537,2]
[426584036,1782631843000,-1000.0,0.00035365,10]
[426584040,1782631843000,-700.0,0.0003537,2]
[426584044,1782631843000,-195.0,0.00029669,30]
[426584034,1782631843000,-151.0,0.00035363,7]
[426584042,1782631843000,-500.0,0.00035399,2]
[426584041,1782631843000,-500.0,0.00035399,2]
[426584045,1782631843000,-118.2620278,0.000354,14]
[426584046,1782631843000,-3085.18551449,0.000354,14]
[426584051,1782631843000,-2769.58786345,0.000299,2]
[426584050,1782631843000,-151.0,0.00019402,2]
[426584049,1782631843000,-249.93096909,0.00013175,2]
[426584011,1782631843000,-25000.0,0.00034982,10]
[426584043,1782631843000,-402900.03097075,0.000354,14]
[426584039,1782631843000,-700.0,0.0003537,2]
[426583994,1782631843000,-155.0,0.00034667,30]
[426584031,1782631843000,-173.884281,0.00035363,7]
[426584012,1782631843000,-25000.0,0.00034991,10]
[426584033,1782631843000,-152.380904,0.00035363,7]
[426584010,1782631843000,-25000.0,0.00034974,10]
[426584016,1782631843000,-617.81,0.00035,30]
[426584017,1782631843000,-600.0,0.00035042,7]
[426584015,1782631843000,-299.15,0.00035,30]
[426584023,1782631843000,-2001.34173374,0.0003523,5]
[426584025,1782631843000,-574.0,0.0003526,3]
[426584022,1782631843000,-199.809999,0.000352,14]
[426584019,1782631843000,-188.26861967,0.000351,120]
[426584026,1782631843000,-841.36625168,0.00035339,30]
[426584027,1782631843000,-151.0,0.00035363,7]
[426584024,1782631843000,-2562.83040121,0.00035235,2]
[426584018,1782631843000,-170.11072308,0.000351,120]
[426584021,1782631843000,-158.47718247,0.00035179,2]
[426584029,1782631843000,-173.884281,0.00035363,7]
[426584030,1782631843000,-173.884281,0.00035363,7]
[426584028,1782631843000,-173.884281,0.00035363,7]
[426584054,1782631844000,-400.26377362,0.000299,2]
[426584053,1782631844000,-93.67972915,0.000299,2]
[426584052,1782631844000,-539.34622638,0.000299,2]
[426584055,1782631845000,-971.50587901,0.000299,2]
[426584056,1782631845000,-99.49489869,0.00030669,30]
[426584057,1782631845000,-95.50510131,0.00030669,30]
[426584058,1782631845000,-195.0,0.00031669,30]
[426584059,1782631845000,-195.0,0.00032669,30]
[426584060,1782631845000,-195.0,0.00033669,30]
[426584062,1782631845000,-440.08639,0.000299,2]
[426584061,1782631845000,-10948.14819582,0.000354,14]
[426584074,1782631846000,-151.0,0.000354,7]
[426584076,1782631846000,-158.250646,0.000354,7]
[426584077,1782631846000,-158.250646,0.000354,7]
[426584083,1782631846000,-360.936387,0.000354,7]
[426584065,1782631846000,-169.28208228,0.000354,14]
[426584080,1782631846000,-158.250646,0.000354,7]
[426584075,1782631846000,-151.000014,0.000354,7]
[426584078,1782631846000,-158.250646,0.000354,7]
[426584081,1782631846000,-360.936387,0.000354,7]
[426584070,1782631846000,-500.0,0.000354,14]
[426584079,1782631846000,-154.69729,0.000354,7]
[426584068,1782631846000,-500.0,0.000354,14]
[426584072,1782631846000,-151.0,0.000354,7]
[426584064,1782631846000,-59538.87294775,0.000354,14]
[426584066,1782631846000,-500.0,0.000354,14]
[426584069,1782631846000,-500.0,0.000354,14]
[426584071,1782631846000,-334.52363922,0.000354,14]
[426584063,1782631846000,-4334.29708147,0.000299,2]
[426584067,1782631846000,-500.0,0.000354,14]
[426584073,1782631846000,-151.0,0.000354,7]
[426584084,1782631846000,-360.936387,0.000354,7]
[426584086,1782631846000,-151.0,0.000354,7]
[426584096,1782631846000,-150.60567885,0.00035425,2]
[426584107,1782631846000,-472.65485628,0.00035454,2]
[426584082,1782631846000,-360.936387,0.000354,7]
[426584101,1782631846000,-500.0,0.00035454,2]
[426584099,1782631846000,-32.6846713,0.00035454,2]
[426584102,1782631846000,-500.0,0.00035454,2]
[426584106,1782631846000,-395.38188904,0.00035454,2]
[426584103,1782631846000,-281.72651096,0.00035454,2]
[426584104,1782631846000,-218.27348904,0.00035454,2]
[426584098,1782631846000,-467.3153287,0.00035454,2]
[426584105,1782631846000,-104.61811096,0.00035454,2]
[426584087,1782631846000,-151.0,0.000354,7]
[426584093,1782631846000,-189.3,0.00035419,2]
[426584097,1782631846000,-158.47718247,0.00035453,2]
[426584088,1782631846000,-208.009683,0.000354,7]
[426584092,1782631846000,-150.07702708,0.000354,2]
[426584100,1782631846000,-500.0,0.00035454,2]
[426584095,1782631846000,-236.69,0.00035423,2]
[426584085,1782631846000,-151.0,0.000354,7]
[426584091,1782631846000,-151.0,0.000354,7]
[426584089,1782631846000,-151.0,0.000354,7]
[426584094,1782631846000,-169.7,0.0003542,30]
[426584108,1782631851000,655.48995816,0.00011966,2]
[426584109,1782631867000,63.62957395,7.945e-05,2]
[426584110,1782631867000,103.07970805,7.945e-05,2]
[426584112,1782631880000,1393.7372428,0.00037338,120]
[426584111,1782631880000,-150.0,0.0001278,2]
[426584113,1782631892000,-192.19532,0.00014,2]
[426584114,1782631945000,-175.12712908,0.00013175,2]
[426584115,1782631999000,-1280.15226103,0.00012375,2]
[426584116,1782632052000,-1560.62820813,0.0001299,2]
[426584118,1782632105000,-267.05241939,0.0001306,2]
[426584119,1782632118000,-21.97191145,0.0001306,2]
[426584120,1782632160000,153.4,0.00028972,120]
[426584122,1782632171000,410072.0849,0.000298,120]
[426584121,1782632171000,-151.0,0.0001316,2]
[426584123,1782632224000,-323.1,0.0001316,2]
[426584124,1782632225000,222707.6619,0.000298,120]
[426584130,1782632431000,300000.0,0.00037339,120]
[426584131,1782632469000,3503.14,0.00037339,120]
[426584132,1782632470000,2197.0,0.00023,30]
[426584133,1782632477000,13354.88147091,0.00037339,120]
[426584134,1782632481000,727486.17727193,0.00037339,120]
[426584135,1782632487000,6209.53607935,0.00037339,120]
[426584136,1782632545000,182503.43,0.00037339,120]
[426584138,1782632559000,274.02,0.00030184,120]
[426584137,1782632559000,274.02,0.00027668,120]
[426584139,1782632591000,-315.64227435,0.0001306,2]
[426584140,1782632644000,-150.0,0.00013085,2]
[426584141,1782632697000,-250.0,0.0001311,2]
[426584147,1782632698000,-323.1,0.000133,2]
[426584148,1782632698000,-181.46,0.0001336,2]
[426584149,1782632698000,-150.0,0.00013408,2]
[426584144,1782632698000,-160.0,0.00013267,2]
[426584142,1782632698000,-250.0,0.00013146,2]
[426584146,1782632698000,-927.16050488,0.00013287,2]
[426584143,1782632698000,-153.0,0.00013175,2]
[426584150,1782632698000,-323.1,0.0001344,2]
[426584145,1782632698000,-150.0,0.00013277,2]
[426584152,1782632698000,-635.84483128,0.0001348,2]
[426584153,1782632698000,-150.0,0.0001354,2]
[426584154,1782632698000,-323.1,0.0001358,2]
[426584161,1782632698000,-323.1,0.00014,2]
[426584158,1782632698000,-323.1,0.0001372,2]
[426584160,1782632698000,-168.445108,0.00014,2]
[426584159,1782632698000,-323.1,0.0001386,2]
[426584162,1782632698000,-50.37890916,0.00014,2]
[426584157,1782632698000,-500.0,0.00013698,2]
[426584156,1782632698000,-500.0,0.00013698,2]
[426584151,1782632698000,-777.14368268,0.0001348,2]
[426584155,1782632698000,-3307.966964,0.00013651,2]
[426584172,1782632751000,-1073.51,0.00014221,2]
[426584163,1782632751000,-199.62109084,0.00014,2]
[426584164,1782632751000,-151.0,0.00014,2]
[426584167,1782632751000,-150.0,0.00014002,2]
[426584165,1782632751000,-151.0,0.00014,2]
[426584166,1782632751000,-250.0,0.00014001,2]
[426584169,1782632751000,-152.0,0.00014043,2]
[426584168,1782632751000,-150.0,0.0001401,2]
[426584170,1782632751000,-323.1,0.0001414,2]
[426584171,1782632751000,-151.0,0.0001418,2]
[426584178,1782632751000,-337.64,0.00014423,2]
[426584176,1782632751000,-323.1,0.0001442,2]
[426584183,1782632751000,-298.43054402,0.00015109,2]
[426584181,1782632751000,-151.0,0.0001482,2]
[426584180,1782632751000,-323.1,0.000147,2]
[426584179,1782632751000,-323.1,0.0001456,2]
[426584177,1782632751000,-500.0,0.00014423,2]
[426584173,1782632751000,-323.1,0.0001428,2]
[426584182,1782632751000,-909.0,0.00015109,2]
[426584174,1782632751000,-250.0,0.00014366,2]
[426584175,1782632751000,-910.0,0.00014398,2]
[426584184,1782632805000,-500.0,0.00013698,2]
[426584190,1782632837000,-150.0,0.00014173,2]
[426584187,1782632837000,-12450.3360144,0.00013865,2]
[426584186,1782632837000,-153.0,0.00013773,2]
[426584185,1782632837000,-152.0,0.00013698,2]
[426584191,1782632837000,-250.0,0.00014554,2]
[426584189,1782632837000,-151.0,0.00014043,2]
[426584192,1782632837000,-160.0,0.00014554,2]
[426584188,1782632837000,-151.0,0.00014,2]
[426584194,1782632837000,-250.0,0.000154,2]
[426584195,1782632837000,-250.0,0.000154,2]
[426584196,1782632837000,-300.0,0.00016,2]
[426584200,1782632837000,-6243.13608246,0.00019339,2]
[426584198,1782632837000,-196.81710543,0.00018539,2]
[426584199,1782632837000,-150.0,0.00019335,2]
[426584197,1782632837000,-904.0,0.00016367,2]
[426584193,1782632837000,-591.56945598,0.00015109,2]
[426584202,1782632858000,-2114.32982222,0.00019339,2]
[426584201,1782632858000,-151.0,0.00013717,2]
[426584203,1782632911000,-151.0,0.00016364,2]
[426584204,1782632931000,5000.0,0.00037338,120]
[426584205,1782632964000,-151.0,0.00016403,2]
[426584206,1782632964000,-151.0,0.00016403,2]
[426584209,1782632964000,-150.0,0.00016427,2]
[426584208,1782632964000,-151.0,0.00016409,2]
[426584207,1782632964000,-151.0,0.00016405,2]
[426584211,1782632965000,-537.42176035,0.00016432,2]
[426584210,1782632965000,-891.0,0.00016432,2]
[426584214,1782632965000,-914.0,0.00016499,2]
[426584215,1782632965000,-917.0,0.00016569,2]
[426584212,1782632965000,-885.0,0.00016456,2]
[426584213,1782632965000,-250.0,0.0001649,2]
[426584216,1782632965000,-152.0,0.00016616,2]
[426584218,1782632965000,-899.0,0.00016732,2]
[426584220,1782632965000,-904.0,0.00017053,2]
[426584217,1782632965000,-886.0,0.00016726,2]
[426584222,1782632965000,-250.0,0.00017836,2]
[426584221,1782632965000,-150.0,0.00017376,2]
[426584230,1782632965000,-333.7559442,0.00019338,2]
[426584229,1782632965000,-129.13475645,0.00019338,2]
[426584228,1782632965000,-500.0,0.00019338,2]
[426584227,1782632965000,-184.39476035,0.00019338,2]
[426584219,1782632965000,-888.0,0.00017053,2]
[426584225,1782632965000,-894.0,0.00019044,2]
[426584223,1782632965000,-250.0,0.00018,2]
[426584224,1782632965000,-200.0,0.00018535,2]
[426584226,1782632965000,-315.60523965,0.00019338,2]
[426584242,1782632966000,-500.0,0.00019338,2]
[426584241,1782632966000,-172.43041305,0.00019338,2]
[426584240,1782632966000,-500.0,0.00019338,2]
[426584238,1782632966000,-500.0,0.00019338,2]
[426584239,1782632966000,-500.0,0.00019338,2]
[426584236,1782632966000,-500.0,0.00019338,2]
[426584235,1782632966000,-500.0,0.00019338,2]
[426584244,1782632966000,-500.0,0.00019338,2]
[426584233,1782632966000,-500.0,0.00019338,2]
[426584234,1782632966000,-500.0,0.00019338,2]
[426584232,1782632966000,-500.0,0.00019338,2]
[426584231,1782632966000,-37.10929935,0.00019338,2]
[426584237,1782632966000,-500.0,0.00019338,2]
[426584245,1782632966000,-500.0,0.00019338,2]
[426584243,1782632966000,-500.0,0.00019338,2]
[426584254,1782632966000,-500.0,0.00019338,2]
[426584246,1782632966000,-500.0,0.00019338,2]
[426584247,1782632966000,-385.0780665,0.00019338,2]
[426584249,1782632966000,-500.0,0.00019338,2]
[426584250,1782632966000,-500.0,0.00019338,2]
[426584251,1782632966000,-500.0,0.00019338,2]
[426584253,1782632966000,-500.0,0.00019338,2]
[426584252,1782632966000,-309.91448314,0.00019338,2]
[426584255,1782632966000,-500.0,0.00019338,2]
[426584248,1782632966000,-500.0,0.00019338,2]
[426584256,1782632966000,-500.0,0.00019338,2]
[426584258,1782632966000,-500.0,0.00019338,2]
[426584257,1782632966000,-500.0,0.00019338,2]
[426584260,1782632966000,-14.07363796,0.00019338,2]
[426584259,1782632966000,-500.0,0.00019338,2]
[426584268,1782632971000,-500.0,0.00019338,2]
[426584267,1782632971000,-500.0,0.00019338,2]
[426584261,1782632971000,-150.0,0.00016403,2]
[426584263,1782632971000,-485.92636204,0.00019338,2]
[426584265,1782632971000,-500.0,0.00019338,2]
[426584262,1782632971000,-160.0,0.00016432,2]
[426584264,1782632971000,-500.0,0.00019338,2]
[426584270,1782632971000,-250.16993209,0.00019338,2]
[426584273,1782632971000,-362.65933787,0.00019338,2]
[426584266,1782632971000,-500.0,0.00019338,2]
[426584271,1782632971000,-500.0,0.00019338,2]
[426584272,1782632971000,-500.0,0.00019338,2]
[426584269,1782632971000,-500.0,0.00019338,2]
[426584274,1782633017000,-237.00175535,0.00019238,2]
[426584278,1782633031000,-250.0,0.00019288,2]
[426584279,1782633031000,-151.0,0.00019338,2]
[426584277,1782633031000,-151.0,0.00019254,2]
[426584280,1782633031000,-131.66079373,0.00019338,2]
[426584276,1782633031000,-151.0,0.00019238,2]
[426584296,1782633032000,-9999.99,0.00019858,2]
[426584294,1782633032000,-26736.09410171,0.0001981,2]
[426584293,1782633032000,-327.63602449,0.0001981,2]
[426584290,1782633032000,-890.81,0.00019743,2]
[426584284,1782633032000,-250.0,0.00019349,2]
[426584283,1782633032000,-19.33920627,0.00019338,2]
[426584288,1782633032000,-150.0,0.00019626,2]
[426584286,1782633032000,-160.0,0.00019497,2]
[426584292,1782633032000,-273.63525361,0.00019767,2]
[426584295,1782633032000,-1269.14348816,0.0001981,2]
[426584298,1782633032000,-9512.56811485,0.00019858,2]
[426584309,1782633032000,-9980.99151719,0.00019859,2]
[426584304,1782633032000,-7853.61,0.00019858,2]
[426584302,1782633032000,-999.99,0.00019858,2]
[426584303,1782633032000,-4999.99,0.00019858,2]
[426584306,1782633032000,-321.17,0.00019858,2]
[426584307,1782633032000,-19719.90529264,0.00019859,2]
[426584297,1782633032000,-487.42188515,0.00019858,2]
[426584300,1782633032000,-500.0,0.00019858,2]
[426584301,1782633032000,-9999.99,0.00019858,2]
[426584299,1782633032000,-500.0,0.00019858,2]
[426584305,1782633032000,-150.99,0.00019858,2]
[426584308,1782633032000,-8704.89282015,0.00019859,2]
[426584325,1782633037000,-1265.85468394,0.00019859,2]
[426584326,1782633037000,-267.05241939,0.00019859,2]
[426584327,1782633038000,-2773.79307199,0.00019859,2]
[426584334,1782633038000,-618.73257491,0.00019859,2]
[426584335,1782633038000,-4237.55,0.00019859,2]
[426584333,1782633038000,-2142.76558674,0.00019859,2]
[426584332,1782633038000,-381.27822225,0.00019859,2]
[426584331,1782633038000,-326.00000013,0.00019859,2]
[426584329,1782633038000,-18549.71018159,0.00019859,2]
[426584330,1782633038000,-16597.81881837,0.00019859,2]
[426584328,1782633038000,-13351.77002023,0.00019859,2]
[426584345,1782633041000,-2809.4853839,0.00019859,2]
[426584344,1782633041000,-3085.18551449,0.00019859,2]
[426584352,1782633043000,-648.27484033,0.00019859,2]
[426584354,1782633043000,-11184.93626155,0.00019859,2]
[426584353,1782633043000,-572.67874104,0.00019859,2]
[426584360,1782633046000,-3905.31231049,0.00019859,2]
[426584359,1782633046000,-5199.05402811,0.00019859,2]
[426584358,1782633046000,-3504.52314146,0.00019859,2]
[426584361,1782633071000,-151.0,0.00019859,2]
[426584362,1782633223000,352.08930706,0.000114,2]
[426584363,1782633225000,4999.999998,0.00037338,120]
[426584366,1782633284000,327.45074073,0.00011,2]
[426584364,1782633284000,2765.99315896,0.00011,2]
[426584365,1782633284000,334.37967431,0.00011,2]
[426584367,1782633284000,328.12591555,0.00011,2]
[426584369,1782633284000,151.0,0.00011,2]
[426584368,1782633284000,151.0,0.00011,2]
[426584372,1782633284000,1140.53815043,0.00011,2]
[426584373,1782633284000,168.24959949,0.00011,2]
[426584374,1782633284000,140.25823018,0.00011,2]
[426584370,1782633284000,151.0,0.00011,2]
[426584371,1782633284000,201.78866793,0.00011,2]
[426584375,1782633393000,17000.69607063,0.00037338,120]
[426584376,1782633417000,20354.01399418,0.00037338,120]
[426584377,1782633437000,-683.41862756,0.00012327,2]
[426584379,1782633452000,272.24420203,0.000107,2]
[426584380,1782633490000,-150.32186528,0.00012238,2]
[426584381,1782633491000,173.0,0.00031,120]
[426584383,1782633544000,-308.64,0.0001235,2]
[426584384,1782633544000,278030.21915935,0.00037338,120]
[426584385,1782633573000,170.3,9.799e-05,2]
[426584386,1782633597000,-848.53,0.00012276,2]
[426584389,1782633650000,-500.0,0.00012276,2]
[426584390,1782633703000,-176.88104888,0.0001225,2]
[426584394,1782633704000,151.7640228,0.0001235,7]
[426584393,1782633704000,150.0,0.00011883,2]
[426584392,1782633704000,765.10698936,0.0001155,2]
[426584391,1782633704000,1155.06222085,0.00011932,2]
[426584396,1782633757000,2082.80626532,0.0001155,2]
[426584395,1782633757000,-1972.77970246,0.00012089,2]
[426584397,1782633763000,150.0,0.00011786,2]
[426584398,1782633764000,166.66,0.00011494,2]
[426584400,1782633765000,166.66,0.00011978,2]
[426584399,1782633765000,166.66,0.00011736,2]
[426584402,1782633810000,562.85,0.00011485,2]
[426584401,1782633810000,-158.8,0.00012046,2]
[426584407,1782633811000,562.85,0.00011673,2]
[426584404,1782633811000,562.85,0.0001156,2]
[426584403,1782633811000,562.85,0.00011522,2]
[426584405,1782633811000,562.85,0.00011598,2]
[426584406,1782633811000,562.85,0.00011636,2]
[426584408,1782633811000,562.85,0.00011711,2]
[426584411,1782633811000,562.85,0.00011825,2]
[426584409,1782633811000,562.85,0.00011749,2]
[426584412,1782633811000,562.85,0.00011862,2]
[426584415,1782633811000,562.85,0.00011976,2]
[426584413,1782633811000,562.85,0.000119,2]
[426584414,1782633811000,562.85,0.00011938,2]
[426584410,1782633811000,562.85,0.00011787,2]
[426584416,1782633817000,994.96950689,0.0001155,2]
[426584417,1782633819000,706.07980577,0.0001132,2]
[426584418,1782633820000,1852.42,0.00011906,2]
[426584419,1782633823000,150.0,0.00011684,2]
[426584420,1782633845000,342.71,0.00011827,2]
[426584421,1782633863000,-562.85,0.00012013,2]
[426584422,1782633884000,150.0,0.00011653,2]
[426584423,1782633887000,160.24,0.00011838,2]